bitfinex-derivatives/quotes_SOLF0:USTF0_20251216
["timestamp","ask_amount","ask_price","bid_price","bid_amount"]
[1765871143260,7.16200236,125.74,125.71,3.2291934]
[1765871147559,7.1599,125.73,125.71,0.0591934]
[1765871148971,7.1603,125.72,125.71,0.0591934]
[1765871149267,0.00250236,125.74,125.71,0.0591934]
[1765871150465,7.1598,125.73,125.71,0.0591934]
[1765871154468,0.00250236,125.74,125.71,0.0591934]
[1765871154469,7.16170236,125.74,125.71,3.2291934]
[1765871156269,0.00250236,125.74,125.71,3.2291934]
[1765871157067,7.16180236,125.74,125.71,3.2291934]
[1765871159878,7.1599,125.73,125.71,0.0591934]
[1765871160283,0.00250236,125.74,125.71,3.2291934]
[1765871161177,0.00250236,125.74,125.72,3.17]
[1765871164482,0.00250236,125.74,125.73,3.12]
[1765871164684,4.1747556,125.81,125.73,3.12]
[1765871165478,7.1558,125.8,125.76,3.12]
[1765871165679,0.05212056,125.79,125.77,0.05091512]
[1765871166088,7.20852056,125.79,125.77,0.05091512]
[1765871169389,7.20852056,125.79,125.77,3.17091512]
[1765871171892,0.05212056,125.79,125.77,3.17091512]
[1765871173791,0.05212056,125.79,125.77,10.32831512]
[1765871173991,0.05212056,125.79,125.78,3.41]
[1765871174485,0.05212056,125.79,125.77,3.46091512]
[1765871176800,0.05212056,125.79,125.78,3.41]
[1765871177798,0.05212056,125.79,125.77,3.46091512]
[1765871178694,0.05212056,125.79,125.78,3.41]
[1765871182303,7.20842056,125.79,125.78,3.41]
[1765871183104,0.05212056,125.79,125.78,3.41]
[1765871185403,0.05212056,125.79,125.77,3.46091512]
[1765871185698,0.05212056,125.79,125.77,0.05091512]
[1765871185895,0.05212056,125.79,125.77,3.46091512]
[1765871187002,0.00212056,125.79,125.78,3.41]
[1765871188001,0.00212056,125.79,125.78,10.5669]
[1765871189699,0.00212056,125.79,125.78,78.1269]
[1765871190206,111.2404,125.89,125.8,3.41]
[1765871190401,2.66865075,125.87,125.81,3.41]
[1765871191201,0.05505283,125.85,125.83,3.46785275]
[1765871193809,0.05505283,125.85,125.83,10.62185275]
[1765871194109,0.05505283,125.85,125.84,3.31]
[1765871195010,9.81955075,125.89,125.86,3.31]
[1765871195709,2.66865075,125.87,125.84,3.31]
[1765871196011,2.72584616,125.87,125.84,3.36067665]
[1765871196310,9.87764616,125.87,125.84,3.36067665]
[1765871196702,0.05719541,125.87,125.84,3.36067665]
[1765871197102,0.05719541,125.87,125.84,10.51407665]
[1765871197301,0.05719541,125.87,125.85,3.31]
[1765871206614,0.05719541,125.87,125.84,67.59067665]
[1765871206615,2.66865075,125.86,125.84,0.05067665]
[1765871207120,7.1529,125.85,125.84,0.05067665]
[1765871207815,8.7329,125.85,125.84,0.05067665]
[1765871208008,9.82275075,125.83,125.79,3.31]
[1765871209218,0.05966408,125.82,125.8,3.36065874]
[1765871213724,111.2381,125.89,125.81,3.31]
[1765871213924,9.82105075,125.86,125.82,3.31]
[1765871214124,2.66865075,125.86,125.82,3.31]
[1765871214518,2.66865075,125.86,125.83,3.31]
[1765871214822,2.72945926,125.86,125.83,3.36386465]
[1765871215624,9.88175926,125.86,125.83,3.36386465]
[1765871215825,7.21310851,125.86,125.83,3.36386465]
[1765871216127,0.06080851,125.86,125.83,3.36386465]
[1765871216425,7.21320851,125.86,125.83,3.36386465]
[1765871218424,2.66865075,125.85,125.83,0.05386465]
[1765871219125,2.66865075,125.85,125.83,3.36386465]
[1765871219932,7.1535,125.84,125.83,3.36386465]
[1765871220326,0.06080851,125.86,125.83,3.36386465]
[1765871220532,2.72945926,125.86,125.83,3.36386465]
[1765871221731,7.1535,125.84,125.83,3.36386465]
[1765871224128,7.1529,125.85,125.83,3.36386465]
[1765871224331,0.06080851,125.86,125.83,3.36386465]
[1765871224627,0.06080851,125.86,125.84,3.41]
[1765871225735,0.06080851,125.86,125.83,7.20776465]
[1765871225736,2.72655626,125.86,125.83,3.46386465]
[1765871225935,2.72655626,125.86,125.83,0.05386465]
[1765871226332,7.153,125.85,125.83,0.05386465]
[1765871226531,2.66574775,125.84,125.83,0.05386465]
[1765871226742,0.06080851,125.86,125.83,3.46386465]
[1765871227036,2.72655626,125.86,125.83,3.46386465]
[1765871228440,0.06080851,125.86,125.83,3.46386465]
[1765871228739,2.72655626,125.86,125.83,3.46386465]
[1765871228941,0.06080851,125.86,125.83,3.46386465]
[1765871229240,2.72655626,125.86,125.83,3.46386465]
[1765871230338,2.72655626,125.86,125.84,3.41]
[1765871230533,0.06080851,125.86,125.84,3.41]
[1765871230739,2.72655626,125.86,125.84,3.41]
[1765871232442,2.72655626,125.86,125.83,3.46386465]
[1765871232642,2.72655626,125.86,125.83,0.05386465]
[1765871232840,2.72655626,125.86,125.83,3.46386465]
[1765871233141,9.87905626,125.86,125.83,3.46386465]
[1765871234443,2.72655626,125.86,125.83,3.46386465]
[1765871234636,2.72655626,125.86,125.83,0.05386465]
[1765871234837,0.06080851,125.86,125.83,0.05386465]
[1765871235038,2.66574775,125.84,125.83,0.05386465]
[1765871237138,9.81924775,125.84,125.83,0.05386465]
[1765871240640,7.1535,125.84,125.83,3.46386465]
[1765871241250,7.1535,125.84,125.83,0.05386465]
[1765871249559,7.1535,125.84,125.83,3.46386465]
[1765871250454,7.1529,125.85,125.83,3.46386465]
[1765871252964,0.06080851,125.86,125.83,3.46386465]
[1765871254067,0.06080851,125.86,125.83,71.00386465]
[1765871254268,0.06080851,125.86,125.84,3.12]
[1765871260966,0.06080851,125.86,125.85,3.12]
[1765871267072,7.21310851,125.86,125.85,3.12]
[1765871267872,7.153,125.85,125.84,3.12]
[1765871269978,0.06080851,125.86,125.84,3.12]
[1765871275187,0.06080851,125.86,125.85,3.12]
[1765871278886,0.06080851,125.86,125.84,70.66]
[1765871279284,0.06080851,125.86,125.85,3.12]
[1765871280383,0.06080851,125.86,125.83,3.17386465]
[1765871280785,4.1688248,125.85,125.83,0.05386465]
[1765871281092,7.1535,125.84,125.83,0.05386465]
[1765871282389,8.7335,125.84,125.83,0.05386465]
[1765871285688,8.7335,125.84,125.77,3.14]
[1765871285689,111.3028,125.82,125.77,3.14]
[1765871285986,4.1688248,125.8,125.77,3.14]
[1765871286890,7.1569,125.78,125.77,3.19826488]
[1765871287089,7.1569,125.78,125.77,0.05826488]
[1765871288394,115.5009248,125.78,125.73,3.14]
[1765871289194,4.1688248,125.76,125.71,3.14]
[1765871289693,4.1688248,125.76,125.72,0.05900514]
[1765871290192,0.05748827,125.77,125.72,3.19900514]
[1765871290895,0.05748827,125.77,125.72,30.19900514]
[1765871291190,0.05748827,125.77,125.73,3.14]
[1765871291598,0.05748827,125.77,125.74,3.14]
[1765871292096,0.05748827,125.77,125.75,3.14]
[1765871292298,0.05748827,125.77,125.75,3.20034537]
[1765871298599,0.05748827,125.77,125.75,0.06034537]
[1765871299005,4.17119975,125.76,125.75,0.06034537]
[1765871299799,7.21498827,125.77,125.75,0.06034537]
[1765871300396,0.05748827,125.77,125.75,3.20034537]
[1765871300604,0.05748827,125.77,125.75,0.06034537]
[1765871301004,7.21498827,125.77,125.75,0.06034537]
[1765871302711,111.3745,125.73,125.68,27.0]
[1765871302916,115.56359975,125.71,125.65,3.14]
[1765871303714,7.1621,125.69,125.65,3.14]
[1765871303909,0.05830042,125.68,125.66,3.19553686]
[1765871305212,7.22110042,125.68,125.66,0.05553686]
[1765871305710,7.22110042,125.68,125.66,3.19553686]
[1765871306007,0.05830042,125.68,125.66,3.19553686]
[1765871306505,111.3677,125.74,125.66,3.19553686]
[1765871306705,111.3677,125.74,125.66,3.14]
[1765871307105,7.1611,125.71,125.67,3.14]
[1765871307507,0.05618674,125.7,125.69,3.14]
[1765871309111,7.1591,125.75,125.69,3.14]
[1765871309313,7.1591,125.75,125.7,3.14]
[1765871309518,7.1591,125.75,125.72,3.14]
[1765871310109,7.2159352,125.75,125.72,3.19563051]
[1765871310417,0.0568352,125.75,125.72,3.19563051]
[1765871312415,0.0568352,125.75,125.74,3.12]
[1765871315920,7.1562,125.8,125.74,3.12]
[1765871316419,7.1564,125.79,125.74,3.12]
[1765871316817,0.05764237,125.78,125.76,3.29]
[1765871317418,7.21454237,125.78,125.75,3.34438969]
[1765871319026,7.21454237,125.78,125.75,0.05438969]
[1765871319418,7.1576,125.77,125.75,0.05438969]
[1765871320126,7.21464237,125.78,125.75,3.34438969]
[1765871320321,0.05764237,125.78,125.75,3.34438969]
[1765871320526,0.05764237,125.78,125.75,0.05438969]
[1765871321724,7.158,125.76,125.75,0.05438969]
[1765871322715,7.21484237,125.78,125.75,3.34438969]
[1765871322920,0.05764237,125.78,125.75,3.34438969]
[1765871324020,0.05764237,125.78,125.76,3.29]
[1765871325023,0.05764237,125.78,125.75,27.05438969]
[1765871325927,7.21454237,125.78,125.75,30.34438969]
[1765871326721,7.1575,125.77,125.75,30.34438969]
[1765871327129,0.05764237,125.78,125.76,3.29]
[1765871329030,0.05764237,125.78,125.77,3.29]
[1765871330427,7.21464237,125.78,125.75,30.34438969]
[1765871331126,0.05764237,125.78,125.75,0.05438969]
[1765871331333,111.39034237,125.78,125.75,0.05438969]
[1765871331726,7.158,125.76,125.75,0.05438969]
[1765871332128,111.3566,125.75,125.68,70.87]
[1765871332332,111.3454,125.77,125.69,3.29]
[1765871333029,0.05917683,125.74,125.72,3.34859464]
[1765871333229,0.05917683,125.74,125.72,0.05859464]
[1765871334733,7.21867683,125.74,125.72,0.05859464]
[1765871336327,7.21867683,125.74,125.72,3.34859464]
[1765871337032,7.1597,125.73,125.72,3.34859464]
[1765871339731,7.1597,125.73,125.72,0.05859464]
[1765871342636,7.1597,125.73,125.72,3.24859464]
[1765871345636,9.83131076,125.73,125.72,0.05859464]
[1765871348336,7.1597,125.73,125.72,3.24859464]
[1765871350235,7.1597,125.73,125.72,0.05859464]
[1765871352136,7.162,125.69,125.68,3.19]
[1765871353036,7.1636,125.67,125.66,3.19]
[1765871354938,0.05530068,125.68,125.66,3.19]
[1765871356046,7.21800068,125.68,125.66,3.19]
[1765871359952,0.05530068,125.68,125.66,3.19]
[1765871363559,7.1631,125.67,125.66,3.19]
[1765871365145,7.21790068,125.68,125.66,3.19]
[1765871365555,0.05530068,125.68,125.66,3.19]
[1765871365960,7.1637,125.66,125.65,0.0503838]
[1765871367160,0.05530068,125.68,125.65,3.2403838]
[1765871371561,0.05530068,125.68,125.65,10.4045838]
[1765871371761,0.05530068,125.68,125.66,3.19]
[1765871372861,0.05530068,125.68,125.67,3.22]
[1765871375967,0.05530068,125.68,125.67,10.3831]
[1765871376166,7.1609,125.71,125.68,3.31]
[1765871377165,7.22087441,125.71,125.68,3.36063363]
[1765871384067,0.05997441,125.71,125.68,3.36063363]
[1765871384277,0.05997441,125.71,125.69,3.31]
[1765871384964,0.05997441,125.71,125.69,27.0]
[1765871385164,115.63129277,125.71,125.68,0.05063363]
[1765871385969,4.17701836,125.69,125.68,0.05063363]
[1765871386568,11.33901836,125.69,125.68,0.05063363]
[1765871390577,11.39799277,125.71,125.68,3.36063363]
[1765871390774,0.05997441,125.71,125.68,3.36063363]
[1765871391379,0.05997441,125.71,125.7,3.31]
[1765871391979,7.1585,125.76,125.71,3.31]
[1765871392173,4.17701836,125.82,125.74,3.31]
[1765871392874,11.33191836,125.82,125.77,3.31]
[1765871393081,11.33191836,125.82,125.79,3.31]
[1765871393082,0.05199877,125.81,125.79,3.31]
[1765871393376,0.05199877,125.81,125.78,0.05110765]
[1765871393578,7.1558,125.8,125.78,0.05110765]
[1765871393785,7.1558,125.8,125.78,3.36110765]
[1765871394480,0.05199877,125.81,125.78,3.36110765]
[1765871397180,0.05199877,125.81,125.79,3.31]
[1765871398080,0.05199877,125.81,125.79,10.4661]
[1765871398278,7.1527,125.86,125.8,3.31]
[1765871398478,111.2399,125.89,125.8,3.31]
[1765871398879,111.2526,125.87,125.8,3.31]
[1765871399378,0.05354272,125.85,125.82,0.05761385]
[1765871399581,7.20664272,125.85,125.82,0.05761385]
[1765871399975,0.05354272,125.85,125.82,0.05761385]
[1765871400283,111.32384272,125.85,125.82,0.05761385]
[1765871400982,7.1537,125.84,125.82,0.05761385]
[1765871402085,0.05354272,125.85,125.82,0.05761385]
[1765871402873,122.94313399,125.85,125.82,0.05761385]
[1765871403282,7.1539,125.84,125.82,0.05761385]
[1765871403477,7.1539,125.84,125.77,3.17]
[1765871403478,111.286,125.83,125.75,10.3282]
[1765871403674,122.91049127,125.82,125.75,3.17]
[1765871403873,111.3151,125.8,125.73,74.7393]
[1765871404077,111.3151,125.8,125.73,70.75]
[1765871404483,0.05380269,125.78,125.75,0.05891766]
[1765871404980,7.21090269,125.78,125.75,0.05891766]
[1765871408583,0.05380269,125.78,125.75,3.22891766]
[1765871412189,7.21080269,125.78,125.75,3.22891766]
[1765871413488,7.1576,125.77,125.75,0.05891766]
[1765871416797,7.1576,125.77,125.75,3.22891766]
[1765871420199,0.05380269,125.78,125.75,3.22891766]
[1765871420599,111.2763,125.85,125.77,3.17]
[1765871421596,0.05832796,125.82,125.8,3.22333112]
[1765871427101,0.05832796,125.82,125.8,10.37893112]
[1765871427294,0.05832796,125.82,125.81,3.17]
[1765871428702,0.05832796,125.82,125.8,0.05333112]
[1765871428904,0.05832796,125.82,125.8,3.22333112]
[1765871429204,0.05832796,125.82,125.8,0.05333112]
[1765871429905,7.21302796,125.82,125.8,0.05333112]
[1765871435208,7.1552,125.81,125.8,0.05333112]
[1765871435407,9.82389893,125.81,125.8,0.05333112]
[1765871435609,7.1552,125.81,125.8,0.05333112]
[1765871436508,111.3179,125.8,125.76,3.36]
[1765871436712,2.66869893,125.78,125.76,3.36]
[1765871437412,111.3179,125.8,125.76,3.36]
[1765871437710,0.05266984,125.79,125.77,0.06033362]
[1765871438903,7.1569,125.78,125.77,0.06033362]
[1765871442613,14.30879158,125.78,125.77,0.06033362]
[1765871444818,7.1597,125.73,125.7,3.36]
[1765871445813,7.21820941,125.73,125.7,3.41409582]
[1765871446812,0.05850941,125.73,125.7,10.57549582]
[1765871447018,0.05850941,125.73,125.71,3.36]
[1765871448011,7.21820941,125.73,125.71,3.36]
[1765871448414,0.05850941,125.73,125.71,3.36]
[1765871449015,7.21830941,125.73,125.71,3.36]
[1765871450329,0.05850941,125.73,125.71,3.36]
[1765871452825,0.05850941,125.73,125.71,10.5209]
[1765871453026,0.05850941,125.73,125.72,3.36]
[1765871454633,7.1579,125.77,125.73,3.36]
[1765871455633,0.05999031,125.76,125.75,3.36]
[1765871461238,7.1586,125.75,125.74,0.06109206]
[1765871463837,2.7304967,125.76,125.74,3.43109206]
[1765871463838,7.21799031,125.76,125.74,3.43109206]
[1765871465245,0.05999031,125.76,125.74,3.43109206]
[1765871466336,0.05999031,125.76,125.74,10.58999206]
[1765871466534,0.05999031,125.76,125.75,3.37]
[1765871467242,0.05999031,125.76,125.74,0.06109206]
[1765871467443,2.67050639,125.75,125.74,0.06109206]
[1765871467836,9.82910639,125.75,125.74,0.06109206]
[1765871468233,4.27050639,125.75,125.7,3.37]
[1765871468435,2.67050639,125.73,125.7,3.37]
[1765871469246,2.72330894,125.73,125.7,3.42443267]
[1765871470046,9.88330894,125.73,125.7,3.42443267]
[1765871472548,7.21280255,125.73,125.7,3.42443267]
[1765871472847,94.90410894,125.78,125.7,3.42443267]
[1765871473047,2.67050639,125.74,125.7,3.37]
[1765871473449,2.67050639,125.74,125.71,3.37]
[1765871473742,2.72992136,125.74,125.71,3.42831216]
[1765871474140,2.67050639,125.72,125.71,0.05831216]
[1765871474343,2.67050639,125.72,125.64,67.6]
[1765871474344,114.05520639,125.72,125.66,3.37]
[1765871474537,114.05520639,125.72,125.61,111.4725]
[1765871474538,2.67050639,125.68,125.62,3.37]
[1765871474745,9.83310639,125.68,125.62,3.37]
[1765871474944,2.67050639,125.66,125.62,3.37]
[1765871475145,111.4123,125.69,125.62,3.37]
[1765871475146,2.67050639,125.64,125.62,3.37]
[1765871475341,2.67050639,125.64,125.61,70.97]
[1765871475541,2.73012355,125.64,125.62,0.05020723]
[1765871477352,0.05961716,125.64,125.62,0.05020723]
[1765871478048,7.22491716,125.64,125.62,0.05020723]
[1765871479042,0.05961716,125.64,125.62,3.42020723]
[1765871481453,0.05961716,125.64,125.63,3.37]
[1765871483357,0.05961716,125.64,125.62,0.05020723]
[1765871485160,7.22461716,125.64,125.62,0.05020723]
[1765871485549,14.39282281,125.64,125.62,0.05020723]
[1765871486755,7.22461716,125.64,125.62,0.05020723]
[1765871487061,111.5168,125.57,125.52,3.37]
[1765871487260,111.526,125.56,125.5,3.37]
[1765871487959,0.05537679,125.54,125.52,0.05535922]
[1765871488150,7.22617679,125.54,125.52,0.05535922]
[1765871488350,0.05537679,125.54,125.47,3.37]
[1765871488553,7.16820565,125.55,125.47,3.37]
[1765871488962,14.33860565,125.55,125.49,3.37]
[1765871489362,0.0579412,125.53,125.51,0.05324295]
[1765871489562,0.0579412,125.53,125.51,3.42324295]
[1765871490363,0.0579412,125.53,125.51,10.59524295]
[1765871490661,0.0579412,125.53,125.52,3.37]
[1765871491057,7.1675,125.6,125.55,3.37]
[1765871491264,118.62510565,125.64,125.55,3.37]
[1765871491466,111.464,125.63,125.55,3.37]
[1765871491858,111.4759,125.62,125.55,3.37]
[1765871492054,0.05245242,125.6,125.57,0.05190909]
[1765871492858,7.21975242,125.6,125.57,0.05190909]
[1765871493465,0.05245242,125.6,125.57,3.18190909]
[1765871495065,0.00245242,125.6,125.59,3.13]
[1765871496360,0.00245242,125.6,125.58,67.68]
[1765871496666,0.00245242,125.6,125.58,70.81]
[1765871497466,0.00245242,125.6,125.59,3.13]
[1765871498372,0.00245242,125.6,125.58,70.81]
[1765871498759,0.00245242,125.6,125.59,3.13]
[1765871498959,0.00245242,125.6,125.58,67.68]
[1765871499164,0.00245242,125.6,125.58,70.81]
[1765871501070,333.13605242,125.6,125.58,70.81]
[1765871501269,333.13605242,125.6,125.59,3.13]
[1765871502968,333.13605242,125.6,125.58,97.81]
[1765871503368,333.13605242,125.6,125.58,70.81]
[1765871503872,333.13605242,125.6,125.58,3.13]
[1765871509178,333.13605242,125.6,125.59,3.13]
[1765871512278,317.90980298,125.6,125.59,10.2977]
[1765871512476,314.47980298,125.6,125.59,10.2977]
[1765871513181,314.47980298,125.6,125.59,67.68]
[1765871513375,314.47980298,125.6,125.57,3.18190909]
[1765871513581,317.64980298,125.6,125.57,70.86190909]
[1765871513777,317.64980298,125.6,125.57,78.03070909]
[1765871514577,3.17,125.59,125.57,67.73190909]
[1765871514782,3.17,125.59,125.57,0.05190909]
[1765871519089,10.338,125.59,125.57,0.05190909]
[1765871519291,3.17,125.58,125.53,7.1706]
[1765871519483,3.17,125.58,125.49,111.5787]
[1765871519484,3.17,125.58,125.5,70.81]
[1765871519789,3.17,125.54,125.5,3.13]
[1765871520188,3.17,125.54,125.51,7.1717]
[1765871520394,3.22065229,125.54,125.51,7.22464047]
[1765871520892,3.22065229,125.54,125.51,3.18294047]
[1765871521097,0.05065229,125.54,125.52,10.3016]
[1765871521394,0.05065229,125.54,125.52,3.13]
[1765871521796,0.05065229,125.54,125.53,7.1711]
[1765871522093,0.05065229,125.54,125.53,10.3011]
[1765871523095,0.05065229,125.54,125.53,7.1711]
[1765871523292,0.05065229,125.54,125.51,10.47474047]
[1765871523493,0.05065229,125.54,125.51,3.30294047]
[1765871524396,0.05065229,125.54,125.53,10.4211]
[1765871525394,0.05065229,125.54,125.53,37.4211]
[1765871525989,324.73740298,125.6,125.57,3.25]
[1765871526797,317.56980298,125.6,125.57,10.4188]
[1765871526992,317.62088514,125.6,125.57,10.47093539]
[1765871527789,314.53088514,125.6,125.59,3.25]
[1765871528191,314.53088514,125.6,125.59,10.4177]
[1765871532202,300.90121982,125.6,125.59,12.0177]
[1765871532505,300.90121982,125.6,125.59,10.4177]
[1765871533396,300.90121982,125.6,125.59,37.4177]
[1765871533596,300.90121982,125.6,125.59,105.0977]
[1765871536101,300.90121982,125.6,125.59,67.68]
[1765871539001,300.90121982,125.6,125.59,78.0977]
[1765871540004,300.90121982,125.6,125.59,74.8477]
[1765871540304,300.90121982,125.6,125.59,78.0977]
[1765871540701,300.90121982,125.6,125.59,74.8477]
[1765871541400,303.99121982,125.6,125.59,67.68]
[1765871542093,300.90121982,125.6,125.59,78.0977]
[1765871546407,220.24805075,125.6,125.59,106.6977]
[1765871546702,40.42394246,125.6,125.59,130.5977]
[1765871546902,3.09,125.68,125.64,7.1644]
[1765871547108,3.09,125.68,125.65,67.68]
[1765871547899,3.09,125.68,125.65,67.74040679]
[1765871547900,3.14445809,125.68,125.65,67.74040679]
[1765871548100,0.05445809,125.68,125.65,67.74040679]
[1765871548502,0.05445809,125.68,125.66,7.1637]
[1765871548810,3.14445809,125.68,125.65,67.74040679]
[1765871549014,3.14445809,125.68,125.66,67.66]
[1765871553910,3.14445809,125.68,125.65,34.22460679]
[1765871554115,3.14445809,125.68,125.66,67.66]
[1765871554615,3.14445809,125.68,125.66,74.8234]
[1765871554807,0.05445809,125.68,125.66,67.66]
[1765871555918,0.05445809,125.68,125.67,7.1631]
[1765871556210,0.05445809,125.68,125.67,34.1631]
[1765871556420,0.00445809,125.68,125.67,7.1631]
[1765871556717,0.00445809,125.68,125.67,8.7631]
[1765871556908,0.00445809,125.68,125.67,35.7631]
[1765871557311,3.26,125.77,125.71,111.389]
[1765871557507,3.26,125.77,125.72,67.64]
[1765871557712,3.26,125.77,125.72,74.8003]
[1765871558314,3.26,125.75,125.73,0.05584903]
[1765871562218,3.26,125.75,125.73,7.21554903]
[1765871562618,3.26,125.75,125.69,27.0]
[1765871563126,3.26,125.73,125.69,27.0]
[1765871563428,3.26,125.73,125.68,179.0313]
[1765871563612,0.05074719,125.72,125.69,0.05757726]
[1765871563816,0.05074719,125.72,125.69,111.46407726]
[1765871564114,0.05074719,125.72,125.71,7.1608]
[1765871564309,0.05074719,125.72,125.71,74.7808]
[1765871572729,3.31074719,125.72,125.71,67.62]
[1765871573731,5.98206837,125.72,125.71,67.62]
[1765871573933,3.26,125.71,125.69,0.05757726]
[1765871574228,3.26,125.7,125.69,0.05757726]
[1765871575923,0.05074719,125.72,125.69,0.05757726]
[1765871576126,0.05074719,125.72,125.71,2.67132118]
[1765871576334,0.05074719,125.72,125.71,97.29132118]
[1765871576724,0.05074719,125.72,125.71,104.45222118]
[1765871577330,0.05074719,125.72,125.71,101.7809]
[1765871578730,0.05074719,125.72,125.71,34.1609]
[1765871578939,0.05074719,125.72,125.71,101.7609]
[1765871579424,0.05074719,125.72,125.71,74.7609]
[1765871584632,0.05074719,125.72,125.71,101.7609]
[1765871585540,0.05074719,125.72,125.71,34.1609]
[1765871585740,0.05074719,125.72,125.71,101.7609]
[1765871586338,0.05074719,125.72,125.71,74.7609]
[1765871588332,3.14074719,125.72,125.71,7.1609]
[1765871588538,3.14074719,125.72,125.69,0.05757726]
[1765871588731,3.14074719,125.72,125.69,67.65757726]
[1765871588936,3.09,125.71,125.69,67.65757726]
[1765871591039,3.09,125.7,125.61,7.15175902]
[1765871591242,3.09,125.7,125.63,111.4628]
[1765871592039,0.0584252,125.68,125.66,7.1636]
[1765871592241,3.09,125.67,125.66,7.1636]
[1765871592438,3.09,125.67,125.65,67.65051153]
[1765871592834,3.09,125.67,125.65,74.81471153]
[1765871593036,3.09,125.67,125.65,67.65051153]
[1765871593744,3.09,125.66,125.65,67.65051153]
[1765871593946,3.09,125.66,125.62,67.6]
[1765871595044,0.06114704,125.65,125.63,0.05026462]
[1765871595245,3.15114704,125.65,125.63,0.05026462]
[1765871603950,3.15114704,125.65,125.63,7.21546462]
[1765871605850,0.06114704,125.65,125.63,9.88999457]
[1765871606155,0.06114704,125.65,125.63,34.21546462]
[1765871609853,0.06114704,125.65,125.64,7.1649]
[1765871610052,0.06114704,125.65,125.64,36.83942995]
[1765871611354,3.15114704,125.65,125.64,94.64]
[1765871612455,3.15114704,125.65,125.64,67.64]
[1765871616061,0.06114704,125.65,125.64,67.64]
[1765871616851,0.06114704,125.65,125.64,74.8049]
[1765871617251,3.38114704,125.65,125.64,67.64]
[1765871617656,3.38114704,125.65,125.63,0.05026462]
[1765871617853,10.4849,125.64,125.63,0.05026462]
[1765871619158,10.4849,125.64,125.6,67.64]
[1765871619159,7.1662,125.62,125.6,67.64]
[1765871620263,7.21901507,125.62,125.6,67.69976011]
[1765871625172,10.53901507,125.62,125.6,67.69976011]
[1765871625672,10.4866,125.61,125.6,67.69976011]
[1765871626275,10.4866,125.61,125.58,27.0]
[1765871626276,3.32,125.6,125.58,27.0]
[1765871627078,3.32,125.6,125.58,27.05269817]
[1765871627274,10.4877,125.59,125.58,27.05269817]
[1765871627480,10.4877,125.59,125.58,0.05269817]
[1765871627882,3.32,125.56,125.52,27.0]
[1765871628673,10.49,125.55,125.52,27.0]
[1765871628883,3.32,125.54,125.52,27.05532832]
[1765871629980,10.4906,125.54,125.52,27.05532832]
[1765871630881,3.37868102,125.55,125.52,27.05532832]
[1765871631886,7.22868102,125.55,125.52,27.05532832]
[1765871632486,10.54868102,125.55,125.52,27.05532832]
[1765871632887,10.54868102,125.55,125.52,0.05532832]
[1765871633288,7.1706,125.54,125.52,0.05532832]
[1765871634186,3.37868102,125.55,125.52,0.05532832]
[1765871634888,0.05868102,125.55,125.52,0.05532832]
[1765871635490,0.05868102,125.55,125.52,7.22702832]
[1765871636590,0.05868102,125.55,125.53,7.1711]
[1765871638687,0.05868102,125.55,125.53,34.1711]
[1765871639389,0.05868102,125.55,125.54,7.1706]
[1765871639592,0.05868102,125.55,125.54,34.1706]
[1765871642083,3.32,125.6,125.56,7.1689]
[1765871642283,3.32,125.6,125.56,101.8489]
[1765871643186,0.05711057,125.59,125.57,7.22536213]
[1765871647998,0.05711057,125.59,125.58,7.1683]
[1765871648506,3.46711057,125.59,125.57,27.05666213]
[1765871648898,3.46711057,125.59,125.57,34.22536213]
[1765871649106,0.05711057,125.59,125.57,27.05666213]
[1765871649904,0.05711057,125.59,125.58,7.1683]
[1765871656010,3.41,125.65,125.62,7.1659]
[1765871656812,3.41,125.65,125.61,74.8465]
[1765871657007,3.41,125.65,125.61,67.68]
[1765871657307,3.41,125.63,125.62,0.05723247]
[1765871660315,3.47061618,125.64,125.62,7.22323247]
[1765871661310,3.47061618,125.64,125.58,27.0]
[1765871661515,3.41,125.63,125.56,27.0]
[1765871661814,4.24667443,125.64,125.57,67.68]
[1765871661815,3.41,125.61,125.57,67.68]
[1765871662409,3.41,125.61,125.58,0.05166323]
[1765871662410,0.05712293,125.6,125.58,0.05166323]
[1765871662610,0.05712293,125.6,125.59,7.1677]
[1765871663810,3.46712293,125.6,125.58,74.89996323]